[Event "Esbjerg Efterår 2024 - Esbjergmesterskabet"]
[Site "Esbjerg, Denmark"]
[Date "2024.10.18"]
[Round "3.1"]
[White "Jacobsen, Mikkel Manosri"]
[Black "Hansen, Lars"]
[Result "1/2-1/2"]
[TimeControl "1.-3. 20 min + 5 sek, 4.-7. 90 min + 30 sek + 15 min efter 40 træk"]
[WhiteElo "2350"]
[BlackElo "2203"]

1. c4 {[%clk 00:20:08]} {[%emt 00:00:01]} b6 {[%clk 00:19:38]} {[%emt
00:00:32]} 2. d4 {[%clk 00:20:04]} {[%emt 00:00:09]} e6 {[%clk 00:19:24]}
{[%emt 00:00:19]} 3. a3 {[%clk 00:20:02]} {[%emt 00:00:07]} Nf6 {[%clk
00:19:02]} {[%emt 00:00:26]} 4. d5 {[%clk 00:19:38]} {[%emt 00:00:30]} Bb7
{[%clk 00:18:03]} {[%emt 00:01:05]} 5. Nc3 {[%clk 00:19:41]} {[%emt 00:00:02]}
Bd6 {[%clk 00:17:53]} {[%emt 00:00:15]} 6. Nf3 {[%clk 00:19:43]} {[%emt
00:00:03]} O-O {[%clk 00:17:38]} {[%emt 00:00:18]} 7. g3 {[%clk 00:19:45]}
{[%emt 00:00:04]} c6 {[%clk 00:16:34]} {[%emt 00:01:10]} 8. Bg2 {[%clk
00:19:48]} {[%emt 00:00:01]} exd5 {[%clk 00:15:56]} {[%emt 00:00:44]} 9. cxd5
{[%clk 00:19:51]} {[%emt 00:00:03]} Na6 {[%clk 00:15:09]} {[%emt 00:00:52]} 10.
b4 {[%clk 00:19:00]} {[%emt 00:00:56]} cxd5 {[%clk 00:14:38]} {[%emt 00:00:35]}
11. Nb5 {[%clk 00:16:21]} {[%emt 00:02:44]} Be7 {[%clk 00:13:18]} {[%emt
00:01:25]} 12. O-O {[%clk 00:16:23]} {[%emt 00:00:03]} Nc7 {[%clk 00:12:56]}
{[%emt 00:00:27]} 13. Nxc7 {[%clk 00:15:31]} {[%emt 00:00:56]} Qxc7 {[%clk
00:12:58]} {[%emt 00:00:03]} 14. Bb2 {[%clk 00:15:35]} {[%emt 00:00:01]} Ne4
{[%clk 00:12:08]} {[%emt 00:00:55]} 15. Rc1 {[%clk 00:14:58]} {[%emt 00:00:42]}
Qd8 {[%clk 00:11:27]} {[%emt 00:00:47]} 16. Qb3 {[%clk 00:15:01]} {[%emt
00:00:02]} Bf6 {[%clk 00:11:03]} {[%emt 00:00:29]} 17. Rfd1 {[%clk 00:14:36]}
{[%emt 00:00:29]} Rc8 {[%clk 00:10:04]} {[%emt 00:01:04]} 18. Nd4 {[%clk
00:12:55]} {[%emt 00:01:45]} Rxc1 {[%clk 00:09:35]} {[%emt 00:00:34]} 19. Rxc1
{[%clk 00:12:54]} {[%emt 00:00:06]} Be5 {[%clk 00:07:53]} {[%emt 00:01:47]} 20.
e3 {[%clk 00:09:11]} {[%emt 00:03:48]} h5 {[%clk 00:05:30]} {[%emt 00:02:28]}
21. Rd1 {[%clk 00:05:56]} {[%emt 00:03:20]} Qf6 {[%clk 00:03:27]} {[%emt
00:02:08]} 22. f4 {[%clk 00:00:50]} {[%emt 00:05:11]} Bxd4 {[%clk 00:02:51]}
{[%emt 00:00:41]} 23. Bxd4 {[%clk 00:00:53]} {[%emt 00:00:02]} Qg6 {[%clk
00:02:55]} 24. Qa4 {[%clk 00:00:40]} {[%emt 00:00:18]} h4 {[%clk 00:02:12]}
{[%emt 00:00:48]} 25. gxh4 {[%clk 00:00:27]} {[%emt 00:00:19]} Rc8 {[%clk
00:01:40]} {[%emt 00:00:36]} 26. Rf1 {[%clk 00:00:08]} {[%emt 00:00:25]} Nd2
{[%clk 00:01:01]} {[%emt 00:00:44]} 27. Qxd7 {[%clk 00:00:07]} {[%emt
00:00:05]} Nxf1 {[%clk 00:00:38]} {[%emt 00:00:29]} 28. h5 {[%clk 00:00:09]}
{[%emt 00:00:03]} 1/2-1/2

[Event "Esbjerg Efterår 2024 - Esbjergmesterskabet"]
[Site "Esbjerg, Denmark"]
[Date "2024.10.18"]
[Round "3.2"]
[White "Perets, Dmytro"]
[Black "Medhus, Vitus Bondo"]
[Result "0-1"]
[TimeControl "1.-3. 20 min + 5 sek, 4.-7. 90 min + 30 sek + 15 min efter 40 træk"]
[WhiteElo "2152"]
[BlackElo "2246"]

1. e4 {[%clk 00:20:09]} e5 {[%clk 00:20:08]} {[%emt 00:00:02]} 2. Nf3 {[%clk
00:20:12]} {[%emt 00:00:02]} Nc6 {[%clk 00:20:12]} {[%emt 00:00:02]} 3. Nc3
{[%clk 00:20:16]} {[%emt 00:00:02]} Nf6 {[%clk 00:20:14]} {[%emt 00:00:02]} 4.
Nxe5 {[%clk 00:20:18]} {[%emt 00:00:02]} Nxe5 {[%clk 00:20:17]} {[%emt
00:00:03]} 5. d4 {[%clk 00:20:22]} {[%emt 00:00:01]} Ng6 {[%clk 00:15:52]}
{[%emt 00:04:30]} 6. e5 {[%clk 00:20:26]} {[%emt 00:00:01]} Ng8 {[%clk
00:15:02]} {[%emt 00:00:54]} 7. Bc4 {[%clk 00:20:29]} {[%emt 00:00:02]} c6
{[%clk 00:13:55]} {[%emt 00:01:13]} 8. Qf3 {[%clk 00:20:15]} {[%emt 00:00:19]}
d5 {[%clk 00:13:50]} {[%emt 00:00:10]} 9. exd6 {[%clk 00:20:13]} {[%emt
00:00:08]} Qxd6 {[%clk 00:11:32]} {[%emt 00:02:23]} 10. Qxf7+ {[%clk 00:17:09]}
{[%emt 00:03:08]} Kd8 {[%clk 00:11:36]} {[%emt 00:00:01]} 11. O-O {[%clk
00:13:21]} {[%emt 00:03:53]} Qf6 {[%clk 00:10:29]} {[%emt 00:01:12]} 12. Bg5
{[%clk 00:10:21]} {[%emt 00:03:06]} Qxg5 {[%clk 00:10:32]} {[%emt 00:00:02]} 13.
Rfe1 {[%clk 00:10:18]} {[%emt 00:00:08]} Bd7 {[%clk 00:08:26]} {[%emt
00:02:11]} 14. Ne4 {[%clk 00:09:33]} {[%emt 00:00:50]} Qf5 {[%clk 00:07:56]}
{[%emt 00:00:35]} 15. Qxf5 {[%clk 00:06:15]} {[%emt 00:03:23]} Bxf5 {[%clk
00:07:58]} {[%emt 00:00:03]} 16. Ng5 {[%clk 00:06:19]} {[%emt 00:00:02]} Nh6
{[%clk 00:07:52]} {[%emt 00:00:11]} 17. d5 {[%clk 00:05:56]} {[%emt 00:00:27]}
Kc7 {[%clk 00:07:05]} {[%emt 00:00:52]} 18. dxc6 {[%clk 00:05:36]} {[%emt
00:00:25]} bxc6 {[%clk 00:07:02]} {[%emt 00:00:08]} 19. Be6 {[%clk 00:05:38]}
{[%emt 00:00:03]} Be7 {[%clk 00:06:58]} {[%emt 00:00:08]} 20. Bxf5 {[%clk
00:05:11]} {[%emt 00:00:32]} Bxg5 {[%clk 00:06:57]} {[%emt 00:00:06]} 0-1

[Event "Esbjerg Efterår 2024 - Esbjergmesterskabet"]
[Site "Esbjerg, Denmark"]
[Date "2024.10.18"]
[Round "3.3"]
[White "Løftgaard, Mikkel Vinh"]
[Black "Vinther, Christoffer"]
[Result "1-0"]
[TimeControl "1.-3. 20 min + 5 sek, 4.-7. 90 min + 30 sek + 15 min efter 40 træk"]
[WhiteElo "2209"]
[BlackElo "1800"]

1. Nc3 {[%clk 00:20:09]} e5 {[%clk 00:20:07]} {[%emt 00:00:04]} 2. d4 {[%clk
00:20:13]} {[%emt 00:00:01]} exd4 {[%clk 00:19:51]} {[%emt 00:00:20]} 3. Qxd4
{[%clk 00:20:16]} {[%emt 00:00:02]} Nf6 {[%clk 00:19:50]} {[%emt 00:00:06]} 4.
e4 {[%clk 00:20:12]} {[%emt 00:00:09]} b6 {[%clk 00:19:45]} {[%emt 00:00:10]} 5.
e5 {[%clk 00:19:58]} {[%emt 00:00:19]} Nc6 {[%clk 00:19:20]} {[%emt 00:00:30]}
6. Qf4 {[%clk 00:19:54]} {[%emt 00:00:08]} Qe7 {[%clk 00:19:17]} {[%emt
00:00:08]} 7. Nf3 {[%clk 00:19:51]} {[%emt 00:00:08]} d6 {[%clk 00:17:44]}
{[%emt 00:01:38]} 8. Bb5 {[%clk 00:19:40]} {[%emt 00:00:17]} Bd7 {[%clk
00:17:28]} {[%emt 00:00:21]} 9. Bxc6 {[%clk 00:19:19]} {[%emt 00:00:26]} Bxc6
{[%clk 00:17:31]} {[%emt 00:00:03]} 10. O-O {[%clk 00:19:21]} {[%emt 00:00:02]}
Nd7 {[%clk 00:15:47]} {[%emt 00:01:48]} 11. exd6 {[%clk 00:18:59]} {[%emt
00:00:28]} Qxd6 {[%clk 00:15:50]} {[%emt 00:00:02]} 12. Re1+ {[%clk 00:18:50]}
{[%emt 00:00:14]} Be7 {[%clk 00:15:51]} {[%emt 00:00:03]} 13. Nd4 {[%clk
00:18:21]} {[%emt 00:00:35]} Bb7 {[%clk 00:10:40]} {[%emt 00:05:16]} 14. Nf5
{[%clk 00:18:19]} {[%emt 00:00:06]} Qc6 {[%clk 00:08:48]} {[%emt 00:01:57]} 15.
Qg3 {[%clk 00:18:05]} {[%emt 00:00:19]} 1-0

[Event "Esbjerg Efterår 2024 - Esbjergmesterskabet"]
[Site "Esbjerg, Denmark"]
[Date "2024.10.18"]
[Round "3.4"]
[White "Justesen, Asger"]
[Black "Rossen, Claus"]
[Result "0-1"]
[TimeControl "1.-3. 20 min + 5 sek, 4.-7. 90 min + 30 sek + 15 min efter 40 træk"]
[WhiteElo "2086"]
[BlackElo "2072"]

1. d4 {[%clk 00:20:08]} {[%emt 00:00:01]} Nf6 {[%clk 00:20:09]} {[%emt
00:00:01]} 2. c4 {[%clk 00:20:11]} {[%emt 00:00:02]} g6 {[%clk 00:20:07]}
{[%emt 00:00:08]} 3. Nf3 {[%clk 00:20:02]} {[%emt 00:00:13]} Bg7 {[%clk
00:20:10]} {[%emt 00:00:02]} 4. g3 {[%clk 00:19:56]} {[%emt 00:00:11]} O-O
{[%clk 00:20:09]} {[%emt 00:00:07]} 5. Bg2 {[%clk 00:19:59]} {[%emt 00:00:02]}
d5 {[%clk 00:20:07]} {[%emt 00:00:07]} 6. cxd5 {[%clk 00:19:47]} {[%emt
00:00:17]} Nxd5 {[%clk 00:20:09]} {[%emt 00:00:02]} 7. Nc3 {[%clk 00:19:20]}
{[%emt 00:00:32]} Nxc3 {[%clk 00:20:09]} {[%emt 00:00:06]} 8. bxc3 {[%clk
00:19:23]} {[%emt 00:00:02]} c5 {[%clk 00:20:01]} {[%emt 00:00:13]} 9. O-O
{[%clk 00:19:13]} {[%emt 00:00:15]} Nc6 {[%clk 00:19:55]} {[%emt 00:00:11]} 10.
Be3 {[%clk 00:17:47]} {[%emt 00:01:31]} cxd4 {[%clk 00:17:29]} {[%emt
00:02:31]} 11. cxd4 {[%clk 00:17:22]} {[%emt 00:00:29]} Be6 {[%clk 00:16:45]}
{[%emt 00:00:48]} 12. Qd2 {[%clk 00:16:07]} {[%emt 00:01:21]} Na5 {[%clk
00:16:35]} {[%emt 00:00:16]} 13. Bh6 {[%clk 00:14:52]} {[%emt 00:01:19]} Bd5
{[%clk 00:14:55]} {[%emt 00:01:44]} 14. Bxg7 {[%clk 00:14:48]} {[%emt
00:00:09]} Kxg7 {[%clk 00:14:58]} {[%emt 00:00:02]} 15. Qf4 {[%clk 00:13:57]}
{[%emt 00:00:56]} Qd6 {[%clk 00:14:33]} {[%emt 00:00:30]} 16. Qh4 {[%clk
00:12:27]} {[%emt 00:01:35]} h6 {[%clk 00:14:03]} {[%emt 00:00:34]} 17. e4
{[%clk 00:10:53]} {[%emt 00:01:40]} Bc4 {[%clk 00:13:39]} {[%emt 00:00:29]} 18.
Rfe1 {[%clk 00:10:43]} {[%emt 00:00:15]} Rac8 {[%clk 00:13:29]} {[%emt
00:00:14]} 19. Rad1 {[%clk 00:09:56]} {[%emt 00:00:52]} Bxa2 {[%clk 00:13:15]}
{[%emt 00:00:20]} 20. Ra1 {[%clk 00:08:49]} {[%emt 00:01:11]} Rc2 {[%clk
00:13:17]} {[%emt 00:00:02]} 21. e5 {[%clk 00:08:42]} {[%emt 00:00:13]} Qd8
{[%clk 00:13:15]} {[%emt 00:00:07]} 22. Qe4 {[%clk 00:08:34]} {[%emt 00:00:14]}
Qc7 {[%clk 00:12:23]} {[%emt 00:00:57]} 23. Nh4 {[%clk 00:07:27]} {[%emt
00:01:11]} e6 {[%clk 00:12:09]} {[%emt 00:00:19]} 24. Qe3 {[%clk 00:04:53]}
{[%emt 00:02:40]} Bd5 {[%clk 00:11:32]} {[%emt 00:00:42]} 25. Bxd5 {[%clk
00:04:45]} {[%emt 00:00:13]} exd5 {[%clk 00:11:36]} {[%emt 00:00:02]} 26. Ng2
{[%clk 00:03:33]} {[%emt 00:01:17]} Rc3 {[%clk 00:10:37]} {[%emt 00:01:04]} 27.
Qf4 {[%clk 00:03:19]} {[%emt 00:00:18]} a6 {[%clk 00:10:10]} {[%emt 00:00:32]}
28. Ne3 {[%clk 00:03:23]} {[%emt 00:00:01]} Rd8 {[%clk 00:09:48]} {[%emt
00:00:28]} 29. Ng4 {[%clk 00:02:58]} {[%emt 00:00:29]} Rh8 {[%clk 00:09:21]}
{[%emt 00:00:33]} 30. Qf6+ {[%clk 00:02:49]} {[%emt 00:00:14]} Kh7 {[%clk
00:09:17]} {[%emt 00:00:08]} 31. Rxa5 {[%clk 00:02:32]} {[%emt 00:00:23]} h5
{[%clk 00:08:28]} {[%emt 00:00:53]} 32. Rxd5 {[%clk 00:01:29]} {[%emt
00:01:08]} hxg4 {[%clk 00:08:29]} {[%emt 00:00:03]} 33. Qh4+ {[%clk 00:01:16]}
{[%emt 00:00:20]} Kg7 {[%clk 00:08:25]} {[%emt 00:00:09]} 34. Qf6+ {[%clk
00:01:18]} {[%emt 00:00:03]} Kh7 {[%clk 00:08:29]} {[%emt 00:00:01]} 35. Qh4+
{[%clk 00:01:22]} Kg7 {[%clk 00:08:32]} {[%emt 00:00:01]} 36. Qxg4 {[%clk
00:00:46]} {[%emt 00:00:43]} Rc1 {[%clk 00:08:09]} {[%emt 00:00:27]} 37. Rxc1
{[%clk 00:00:25]} {[%emt 00:00:25]} Qxc1+ {[%clk 00:08:13]} 38. Kg2 {[%clk
00:00:30]} {[%emt 00:00:01]} Qc6 {[%clk 00:08:17]} 39. Qf3 {[%clk 00:00:31]}
{[%emt 00:00:04]} b5 {[%clk 00:08:08]} {[%emt 00:00:14]} 40. Rd6 {[%clk
00:00:16]} {[%emt 00:00:20]} Rxh2+ {[%clk 00:08:10]} {[%emt 00:00:02]} 0-1

[Event "Esbjerg Efterår 2024 - Esbjergmesterskabet"]
[Site "Esbjerg, Denmark"]
[Date "2024.10.18"]
[Round "3.5"]
[White "Hansen, Joshua Kehlet"]
[Black "Jensen, Henrik Tranberg"]
[Result "0-1"]
[TimeControl "1.-3. 20 min + 5 sek, 4.-7. 90 min + 30 sek + 15 min efter 40 træk"]
[WhiteElo "1819"]
[BlackElo "2014"]

1. Nf3 {[%clk 00:20:08]} {[%emt 00:00:02]} Nf6 {[%clk 00:20:06]} {[%emt
00:00:04]} 2. e3 {[%clk 00:20:11]} d5 {[%clk 00:20:07]} {[%emt 00:00:04]} 3. b3
{[%clk 00:20:15]} {[%emt 00:00:01]} c5 {[%clk 00:20:08]} {[%emt 00:00:04]} 4.
c4 {[%clk 00:20:12]} {[%emt 00:00:08]} Nc6 {[%clk 00:19:58]} {[%emt 00:00:15]}
5. Bb2 {[%clk 00:20:13]} {[%emt 00:00:04]} Bg4 {[%clk 00:19:52]} {[%emt
00:00:11]} 6. h3 {[%clk 00:20:15]} {[%emt 00:00:02]} Bh5 {[%clk 00:19:56]}
{[%emt 00:00:01]} 7. Be2 {[%clk 00:20:19]} {[%emt 00:00:01]} e6 {[%clk
00:19:52]} {[%emt 00:00:09]} 8. Ne5 {[%clk 00:19:25]} {[%emt 00:00:59]} Bxe2
{[%clk 00:19:53]} {[%emt 00:00:05]} 9. Qxe2 {[%clk 00:19:28]} {[%emt 00:00:02]}
Bd6 {[%clk 00:19:12]} {[%emt 00:00:46]} 10. Nxc6 {[%clk 00:19:24]} {[%emt
00:00:09]} bxc6 {[%clk 00:19:15]} {[%emt 00:00:01]} 11. d4 {[%clk 00:19:01]}
{[%emt 00:00:29]} O-O {[%clk 00:19:10]} {[%emt 00:00:10]} 12. Nc3 {[%clk
00:18:35]} {[%emt 00:00:30]} cxd4 {[%clk 00:17:38]} {[%emt 00:01:38]} 13. exd4
{[%clk 00:18:39]} {[%emt 00:00:01]} e5 {[%clk 00:17:11]} {[%emt 00:00:32]} 14.
dxe5 {[%clk 00:17:28]} {[%emt 00:01:15]} Bxe5 {[%clk 00:17:15]} {[%emt
00:00:01]} 15. O-O-O {[%clk 00:16:11]} {[%emt 00:01:21]} Re8 {[%clk 00:17:04]}
{[%emt 00:00:17]} 16. Qf3 {[%clk 00:15:56]} {[%emt 00:00:20]} Qa5 {[%clk
00:16:23]} {[%emt 00:00:45]} 17. cxd5 {[%clk 00:14:08]} {[%emt 00:01:54]} cxd5
{[%clk 00:16:11]} {[%emt 00:00:17]} 18. Nxd5 {[%clk 00:11:45]} {[%emt
00:02:27]} Nxd5 {[%clk 00:12:15]} {[%emt 00:04:01]} 19. Qxd5 {[%clk 00:09:21]}
{[%emt 00:02:29]} Bxb2+ {[%clk 00:11:33]} {[%emt 00:00:47]} 20. Kxb2 {[%clk
00:09:24]} {[%emt 00:00:02]} Re2+ {[%clk 00:11:32]} {[%emt 00:00:06]} 21. Kc1
{[%clk 00:05:37]} {[%emt 00:03:53]} Qc3+ {[%clk 00:11:27]} {[%emt 00:00:09]}
0-1

[Event "Esbjerg Efterår 2024 - Esbjergmesterskabet"]
[Site "Esbjerg, Denmark"]
[Date "2024.10.18"]
[Round "3.6"]
[White "LIndgaard, Tobias Simon"]
[Black "Saravana, Vedant Kumar"]
[Result "0-1"]
[TimeControl "1.-3. 20 min + 5 sek, 4.-7. 90 min + 30 sek + 15 min efter 40 træk"]
[WhiteElo "1879"]
[BlackElo "2115"]

1. g3 {[%clk 00:20:08]} {[%emt 00:00:01]} e5 {[%clk 00:19:56]} {[%emt
00:00:14]} 2. Bg2 {[%clk 00:20:11]} {[%emt 00:00:02]} d6 {[%clk 00:19:59]}
{[%emt 00:00:02]} 3. c4 {[%clk 00:20:13]} {[%emt 00:00:04]} f5 {[%clk
00:19:47]} {[%emt 00:00:17]} 4. Nc3 {[%clk 00:20:15]} {[%emt 00:00:03]} Nf6
{[%clk 00:19:43]} {[%emt 00:00:08]} 5. e3 {[%clk 00:20:16]} {[%emt 00:00:04]}
Be7 {[%clk 00:19:47]} {[%emt 00:00:01]} 6. Nge2 {[%clk 00:20:19]} {[%emt
00:00:02]} O-O {[%clk 00:19:47]} {[%emt 00:00:05]} 7. d4 {[%clk 00:20:21]}
{[%emt 00:00:03]} c6 {[%clk 00:19:35]} {[%emt 00:00:17]} 8. O-O {[%clk
00:20:23]} {[%emt 00:00:03]} Na6 {[%clk 00:19:25]} {[%emt 00:00:15]} 9. Qb3
{[%clk 00:19:57]} {[%emt 00:00:31]} Kh8 {[%clk 00:18:40]} {[%emt 00:00:49]} 10.
Rd1 {[%clk 00:19:08]} {[%emt 00:00:53]} Qc7 {[%clk 00:17:33]} {[%emt 00:01:12]}
11. Bd2 {[%clk 00:18:54]} {[%emt 00:00:19]} Be6 {[%clk 00:16:13]} {[%emt
00:01:25]} 12. Rac1 {[%clk 00:17:34]} {[%emt 00:01:25]} Qb6 {[%clk 00:11:41]}
{[%emt 00:04:37]} 13. Qxb6 {[%clk 00:15:51]} {[%emt 00:01:48]} axb6 {[%clk
00:11:45]} {[%emt 00:00:01]} 14. d5 {[%clk 00:15:55]} {[%emt 00:00:01]} Bd7
{[%clk 00:11:49]} {[%emt 00:00:01]} 15. a3 {[%clk 00:15:35]} {[%emt 00:00:25]}
Nc5 {[%clk 00:11:51]} {[%emt 00:00:03]} 16. Be1 {[%clk 00:15:10]} {[%emt
00:00:30]} e4 {[%clk 00:10:53]} {[%emt 00:01:03]} 17. Nd4 {[%clk 00:14:04]}
{[%emt 00:01:11]} Nd3 {[%clk 00:10:33]} {[%emt 00:00:25]} 18. Rxd3 {[%clk
00:14:03]} {[%emt 00:00:06]} exd3 {[%clk 00:10:36]} {[%emt 00:00:02]} 19. Rd1
{[%clk 00:13:54]} {[%emt 00:00:14]} cxd5 {[%clk 00:10:23]} {[%emt 00:00:18]} 20.
cxd5 {[%clk 00:13:48]} {[%emt 00:00:11]} Rfe8 {[%clk 00:08:58]} {[%emt
00:01:29]} 21. Rxd3 {[%clk 00:13:26]} {[%emt 00:00:28]} Rac8 {[%clk 00:08:44]}
{[%emt 00:00:17]} 22. Rd1 {[%clk 00:13:05]} {[%emt 00:00:27]} Bf8 {[%clk
00:08:44]} {[%emt 00:00:05]} 23. Nce2 {[%clk 00:12:22]} {[%emt 00:00:48]} g5
{[%clk 00:08:13]} {[%emt 00:00:35]} 24. Bc3 {[%clk 00:11:49]} {[%emt 00:00:38]}
Bg7 {[%clk 00:08:17]} {[%emt 00:00:01]} 25. Bh3 {[%clk 00:10:35]} {[%emt
00:01:20]} g4 {[%clk 00:04:14]} {[%emt 00:04:08]} 26. Bg2 {[%clk 00:10:35]}
{[%emt 00:00:04]} Ne4 {[%clk 00:04:18]} {[%emt 00:00:01]} 27. Bxe4 {[%clk
00:09:43]} {[%emt 00:00:57]} fxe4 {[%clk 00:04:05]} {[%emt 00:00:18]} 28. Nf4
{[%clk 00:09:46]} {[%emt 00:00:03]} Be5 {[%clk 00:04:01]} {[%emt 00:00:08]} 29.
Kg2 {[%clk 00:08:14]} {[%emt 00:01:37]} Kg8 {[%clk 00:03:57]} {[%emt 00:00:09]}
30. Nh5 {[%clk 00:07:37]} {[%emt 00:00:42]} Kf7 {[%clk 00:02:54]} {[%emt
00:01:08]} 31. Rf1 {[%clk 00:07:05]} {[%emt 00:00:37]} Rc5 {[%clk 00:02:46]}
{[%emt 00:00:11]} 32. Nf4 {[%clk 00:05:46]} {[%emt 00:01:25]} Bxf4 {[%clk
00:02:35]} {[%emt 00:00:16]} 33. gxf4 {[%clk 00:05:45]} {[%emt 00:00:06]} Rxd5
{[%clk 00:02:39]} {[%emt 00:00:02]} 34. b4 {[%clk 00:05:16]} {[%emt 00:00:33]}
Rc8 {[%clk 00:02:06]} {[%emt 00:00:36]} 35. Bb2 {[%clk 00:05:19]} {[%emt
00:00:04]} Rh5 {[%clk 00:02:09]} {[%emt 00:00:01]} 36. Rd1 {[%clk 00:05:13]}
{[%emt 00:00:12]} Rg8 {[%clk 00:01:27]} {[%emt 00:00:47]} 37. Ne2 {[%clk
00:05:15]} {[%emt 00:00:03]} g3 {[%clk 00:01:03]} {[%emt 00:00:29]} 38. Nxg3
{[%clk 00:04:43]} {[%emt 00:00:37]} Ke7 {[%clk 00:00:48]} {[%emt 00:00:20]} 39.
Bd4 {[%clk 00:04:28]} {[%emt 00:00:20]} Bg4 {[%clk 00:00:48]} {[%emt 00:00:05]}
40. Rc1 {[%clk 00:04:21]} {[%emt 00:00:13]} Bf3+ {[%clk 00:00:48]} {[%emt
00:00:04]} 41. Kg1 {[%clk 00:04:12]} {[%emt 00:00:14]} Rb5 {[%clk 00:00:49]}
{[%emt 00:00:04]} 42. Kf1 {[%clk 00:03:32]} {[%emt 00:00:46]} Kd7 {[%clk
00:00:45]} {[%emt 00:00:08]} 43. Ke1 {[%clk 00:03:19]} {[%emt 00:00:19]} h5
{[%clk 00:00:36]} {[%emt 00:00:13]} 44. Rc4 {[%clk 00:02:40]} {[%emt 00:00:44]}
h4 {[%clk 00:00:35]} {[%emt 00:00:06]} 45. Ne2 {[%clk 00:02:35]} {[%emt
00:00:10]} Ra8 {[%clk 00:00:17]} {[%emt 00:00:23]} 46. Nc3 {[%clk 00:02:32]}
{[%emt 00:00:08]} Rf5 {[%clk 00:00:19]} {[%emt 00:00:03]} 47. Nb1 {[%clk
00:02:32]} {[%emt 00:00:05]} d5 {[%clk 00:00:19]} {[%emt 00:00:04]} 48. Rc3
{[%clk 00:02:27]} {[%emt 00:00:11]} Rg8 {[%clk 00:00:22]} {[%emt 00:00:01]} 49.
Rc1 {[%clk 00:02:02]} {[%emt 00:00:30]} Rg1+ {[%clk 00:00:22]} {[%emt
00:00:05]} 50. Kd2 {[%clk 00:02:05]} {[%emt 00:00:03]} Rg2 {[%clk 00:00:23]}
{[%emt 00:00:03]} 51. Ke1 {[%clk 00:01:47]} {[%emt 00:00:23]} Rxh2 {[%clk
00:00:27]} {[%emt 00:00:01]} 52. Bxb6 {[%clk 00:01:51]} {[%emt 00:00:01]} Rh1+
{[%clk 00:00:28]} {[%emt 00:00:04]} 53. Kd2 {[%clk 00:01:55]} {[%emt 00:00:01]}
Rxc1 {[%clk 00:00:27]} {[%emt 00:00:05]} 54. Kxc1 {[%clk 00:01:59]} h3 {[%clk
00:00:31]} {[%emt 00:00:01]} 0-1